[Event "HSG Open 2022 A"]
[Site "Hilversum, Netherlands"]
[Date "2022.06.18"]
[Round "3.3"]
[White "Tabak, Stefan"]
[Black "Harff, Marcel"]
[Result "0-1"]
[TimeControl "1:50 + 0.10"]
[WhiteElo "2164"]
[BlackElo "2329"]

1. e4 {[%clk 01:50:15]} {[%emt 00:00:04]} e6 {[%clk 01:50:09]} {[%emt
00:00:11]} 2. d4 {[%clk 01:50:08]} {[%emt 00:00:18]} d5 {[%clk 01:50:13]}
{[%emt 00:00:07]} 3. e5 {[%clk 01:50:09]} {[%emt 00:00:08]} c5 {[%clk
01:50:16]} {[%emt 00:00:07]} 4. c3 {[%clk 01:50:15]} {[%emt 00:00:02]} Nc6
{[%clk 01:50:12]} {[%emt 00:00:13]} 5. Nf3 {[%clk 01:50:13]} {[%emt 00:00:14]}
Bd7 {[%clk 01:50:09]} {[%emt 00:00:12]} 6. Bd3 {[%clk 01:50:02]} {[%emt
00:00:21]} Rc8 {[%clk 01:49:48]} {[%emt 00:00:32]} 7. O-O {[%clk 01:49:39]}
{[%emt 00:00:33]} cxd4 {[%clk 01:49:51]} {[%emt 00:00:07]} 8. Re1 {[%clk
01:48:37]} {[%emt 00:01:10]} dxc3 {[%clk 01:48:03]} {[%emt 00:01:59]} 9. Nxc3
{[%clk 01:39:20]} {[%emt 00:09:27]} h6 {[%clk 01:42:56]} {[%emt 00:05:17]} 10.
a3 {[%clk 01:36:38]} {[%emt 00:02:53]} a6 {[%clk 01:42:40]} {[%emt 00:00:25]}
11. Be3 {[%clk 01:28:46]} {[%emt 00:08:03]} Na5 {[%clk 01:41:29]} {[%emt
00:01:20]} 12. Bf4 {[%clk 01:13:00]} {[%emt 00:15:56]} Ne7 {[%clk 01:37:39]}
{[%emt 00:03:59]} 13. h4 {[%clk 01:11:40]} {[%emt 00:01:32]} Nc4 {[%clk
01:37:43]} {[%emt 00:00:06]} 14. Qe2 {[%clk 01:10:59]} {[%emt 00:00:51]} Qb6
{[%clk 01:34:51]} {[%emt 00:03:01]} 15. b4 {[%clk 01:04:29]} {[%emt 00:06:41]}
Qd8 {[%clk 01:17:45]} {[%emt 00:17:16]} 16. h5 {[%clk 01:03:02]} {[%emt
00:01:37]} b5 {[%clk 01:17:04]} {[%emt 00:00:51]} 17. g4 {[%clk 00:35:20]}
{[%emt 00:27:52]} Nb6 {[%clk 01:06:25]} {[%emt 00:10:49]} 18. Rac1 {[%clk
00:34:11]} {[%emt 00:01:19]} g5 {[%clk 01:06:29]} {[%emt 00:00:07]} 19. hxg6
{[%clk 00:28:36]} {[%emt 00:05:45]} Nxg6 {[%clk 01:05:23]} {[%emt 00:01:15]} 20.
Bg3 {[%clk 00:28:41]} {[%emt 00:00:06]} Rg8 {[%clk 01:05:01]} {[%emt 00:00:31]}
21. Kg2 {[%clk 00:25:57]} {[%emt 00:02:54]} Be7 {[%clk 01:03:15]} {[%emt
00:01:56]} 22. Rh1 {[%clk 00:22:58]} {[%emt 00:03:09]} Bg5 {[%clk 01:02:53]}
{[%emt 00:00:32]} 23. Nxg5 {[%clk 00:21:35]} {[%emt 00:01:33]} Qxg5 {[%clk
01:02:37]} {[%emt 00:00:25]} 24. Bxg6 {[%clk 00:18:07]} {[%emt 00:03:39]} Rxg6
{[%clk 01:02:09]} {[%emt 00:00:38]} 25. f4 {[%clk 00:17:27]} {[%emt 00:00:50]}
Qxg4 {[%clk 01:01:04]} {[%emt 00:01:15]} 26. Qxg4 {[%clk 00:17:32]} {[%emt
00:00:05]} Rxg4 {[%clk 01:01:09]} {[%emt 00:00:05]} 27. Kf3 {[%clk 00:15:12]}
{[%emt 00:02:31]} Rg6 {[%clk 01:00:54]} {[%emt 00:00:24]} 28. Ne2 {[%clk
00:15:18]} {[%emt 00:00:05]} Rxc1 {[%clk 00:59:26]} {[%emt 00:01:37]} 29. Rxc1
{[%clk 00:15:21]} {[%emt 00:00:07]} Nc4 {[%clk 00:59:32]} {[%emt 00:00:04]} 30.
Bh4 {[%clk 00:13:47]} {[%emt 00:01:44]} Bc6 {[%clk 00:59:08]} {[%emt 00:00:34]}
31. Nd4 {[%clk 00:13:44]} {[%emt 00:00:13]} Bb7 {[%clk 00:59:12]} {[%emt
00:00:06]} 32. Bf6 {[%clk 00:07:31]} {[%emt 00:06:23]} Kd7 {[%clk 00:58:33]}
{[%emt 00:00:49]} 33. f5 {[%clk 00:07:10]} {[%emt 00:00:31]} exf5 {[%clk
00:58:24]} {[%emt 00:00:19]} 34. Rd1 {[%clk 00:06:05]} {[%emt 00:01:14]} f4
{[%clk 00:57:06]} {[%emt 00:01:30]} 35. Kxf4 {[%clk 00:05:23]} {[%emt
00:00:51]} Rg2 {[%clk 00:56:45]} {[%emt 00:00:31]} 36. Nb3 {[%clk 00:05:03]}
{[%emt 00:00:30]} Kc7 {[%clk 00:54:22]} {[%emt 00:02:33]} 37. Nc5 {[%clk
00:04:37]} {[%emt 00:00:36]} Rf2+ {[%clk 00:54:19]} {[%emt 00:00:12]} 38. Kg3
{[%clk 00:04:33]} {[%emt 00:00:15]} Rd2 {[%clk 00:54:04]} {[%emt 00:00:24]} 39.
Rh1 {[%clk 00:04:22]} {[%emt 00:00:21]} Ne3 {[%clk 00:53:48]} {[%emt 00:00:26]}
40. Kf4 {[%clk 00:03:56]} {[%emt 00:00:37]} d4 {[%clk 00:53:42]} {[%emt
00:00:16]} 41. Nxb7 {[%clk 00:03:32]} {[%emt 00:00:35]} Kxb7 {[%clk 00:52:19]}
{[%emt 00:01:32]} 42. Rxh6 {[%clk 00:03:35]} {[%emt 00:00:07]} Nd5+ {[%clk
00:52:12]} {[%emt 00:00:18]} 43. Ke4 {[%clk 00:03:23]} {[%emt 00:00:22]} Nc3+
{[%clk 00:51:50]} {[%emt 00:00:31]} 44. Kf3 {[%clk 00:03:32]} {[%emt 00:00:01]}
Rd3+ {[%clk 00:51:03]} {[%emt 00:00:56]} 45. Kf4 {[%clk 00:01:52]} {[%emt
00:01:51]} Rd1 {[%clk 00:47:18]} {[%emt 00:03:56]} 46. Rh7 {[%clk 00:01:52]}
{[%emt 00:00:10]} Rf1+ {[%clk 00:47:15]} {[%emt 00:00:12]} 47. Kg4 {[%clk
00:01:45]} {[%emt 00:00:17]} d3 {[%clk 00:47:23]} {[%emt 00:00:03]} 48. Bg5
{[%clk 00:00:18]} {[%emt 00:01:36]} Kc6 {[%clk 00:43:18]} {[%emt 00:04:16]} 49.
Rh6+ {[%clk 00:00:15]} {[%emt 00:00:13]} Kc7 {[%clk 00:41:06]} {[%emt
00:02:22]} 50. Rxa6 {[%clk 00:00:13]} {[%emt 00:00:13]} Rg1+ {[%clk 00:41:03]}
{[%emt 00:00:12]} 51. Kf5 {[%clk 00:00:18]} {[%emt 00:00:05]} Rxg5+ {[%clk
00:41:05]} {[%emt 00:00:07]} 52. Kxg5 {[%clk 00:00:28]} {[%emt 00:00:01]} d2
{[%clk 00:40:21]} {[%emt 00:00:53]} 53. Ra7+ {[%clk 00:00:35]} {[%emt
00:00:03]} Kd8 {[%clk 00:40:12]} {[%emt 00:00:19]} 54. Ra8+ {[%clk 00:00:19]}
{[%emt 00:00:27]} Ke7 {[%clk 00:40:16]} {[%emt 00:00:05]} 55. Ra7+ {[%clk
00:00:20]} {[%emt 00:00:09]} Ke6 {[%clk 00:40:21]} {[%emt 00:00:05]} 0-1

[Event "HSG Open 2022 A"]
[Site "Hilversum, Netherlands"]
[Date "2022.06.18"]
[Round "3.4"]
[White "Elgersma, Onno"]
[Black "De Winter, Arthur"]
[Result "1-0"]
[TimeControl "1:50 + 0.10"]
[WhiteElo "2312"]
[BlackElo "2126"]

1. d4 {[%clk 01:50:16]} {[%emt 00:00:03]} Nf6 {[%clk 01:50:09]} {[%emt
00:00:12]} 2. Nf3 {[%clk 01:50:21]} {[%emt 00:00:05]} g6 {[%clk 01:49:48]}
{[%emt 00:00:31]} 3. c4 {[%clk 01:50:26]} {[%emt 00:00:05]} Bg7 {[%clk
01:49:53]} {[%emt 00:00:05]} 4. e3 {[%clk 01:50:32]} {[%emt 00:00:04]} O-O
{[%clk 01:49:17]} {[%emt 00:00:46]} 5. Be2 {[%clk 01:50:38]} {[%emt 00:00:05]}
d6 {[%clk 01:49:00]} {[%emt 00:00:26]} 6. Nc3 {[%clk 01:50:42]} {[%emt
00:00:05]} Nbd7 {[%clk 01:48:25]} {[%emt 00:00:45]} 7. O-O {[%clk 01:50:46]}
{[%emt 00:00:06]} e5 {[%clk 01:48:33]} {[%emt 00:00:03]} 8. Qc2 {[%clk
01:50:46]} {[%emt 00:00:12]} Re8 {[%clk 01:47:41]} {[%emt 00:01:00]} 9. Rd1
{[%clk 01:50:50]} {[%emt 00:00:07]} e4 {[%clk 01:47:02]} {[%emt 00:00:47]} 10.
Nd2 {[%clk 01:50:55]} {[%emt 00:00:05]} Qe7 {[%clk 01:47:07]} {[%emt 00:00:08]}
11. b4 {[%clk 01:50:56]} {[%emt 00:00:07]} Nf8 {[%clk 01:46:18]} {[%emt
00:01:01]} 12. a4 {[%clk 01:50:55]} {[%emt 00:00:09]} h5 {[%clk 01:40:53]}
{[%emt 00:05:35]} 13. a5 {[%clk 01:50:44]} {[%emt 00:00:23]} Bf5 {[%clk
01:39:59]} {[%emt 00:01:02]} 14. a6 {[%clk 01:50:31]} {[%emt 00:00:23]} b6
{[%clk 01:35:36]} {[%emt 00:04:33]} 15. b5 {[%clk 01:50:30]} {[%emt 00:00:10]}
Ne6 {[%clk 01:27:19]} {[%emt 00:08:27]} 16. Nf1 {[%clk 01:48:25]} {[%emt
00:02:15]} Ng4 {[%clk 01:16:26]} {[%emt 00:11:03]} 17. h3 {[%clk 01:21:29]}
{[%emt 00:27:07]} Nxf2 {[%clk 00:33:29]} {[%emt 00:43:07]} 18. Kxf2 {[%clk
01:21:13]} {[%emt 00:00:26]} Bxd4 {[%clk 00:33:19]} {[%emt 00:00:20]} 19. Kg1
{[%clk 01:15:09]} {[%emt 00:06:13]} Be5 {[%clk 00:33:02]} {[%emt 00:00:27]} 20.
Bb2 {[%clk 01:06:46]} {[%emt 00:08:33]} Ng5 {[%clk 00:26:29]} {[%emt 00:06:43]}
21. Nd5 {[%clk 00:47:29]} {[%emt 00:19:28]} Nxh3+ {[%clk 00:25:28]} {[%emt
00:01:10]} 22. gxh3 {[%clk 00:47:33]} {[%emt 00:00:07]} Qg5+ {[%clk 00:25:31]}
{[%emt 00:00:06]} 23. Kh1 {[%clk 00:47:26]} {[%emt 00:00:17]} Bxh3 {[%clk
00:24:48]} {[%emt 00:00:54]} 24. Bxh5 {[%clk 00:47:04]} {[%emt 00:00:31]} Bxf1
{[%clk 00:15:00]} {[%emt 00:09:58]} 25. Bxe5 {[%clk 00:45:26]} {[%emt
00:01:48]} Rxe5 {[%clk 00:11:49]} {[%emt 00:03:21]} 26. Rxf1 {[%clk 00:44:56]}
{[%emt 00:00:41]} Kg7 {[%clk 00:10:24]} {[%emt 00:01:34]} 27. Nf4 {[%clk
00:42:51]} {[%emt 00:02:15]} Rh8 {[%clk 00:10:18]} {[%emt 00:00:16]} 28. Rf2
{[%clk 00:39:49]} {[%emt 00:03:12]} Rxh5+ {[%clk 00:05:04]} {[%emt 00:05:25]}
29. Nxh5+ {[%clk 00:38:40]} {[%emt 00:01:18]} Qxh5+ {[%clk 00:05:11]} {[%emt
00:00:03]} 30. Rh2 {[%clk 00:34:42]} {[%emt 00:04:08]} Qf3+ {[%clk 00:05:17]}
{[%emt 00:00:04]} 31. Qg2 {[%clk 00:34:48]} {[%emt 00:00:04]} Qxe3 {[%clk
00:05:24]} {[%emt 00:00:03]} 32. Rf1 {[%clk 00:32:54]} {[%emt 00:02:05]} f5
{[%clk 00:04:09]} {[%emt 00:01:25]} 33. Rh3 {[%clk 00:31:49]} {[%emt 00:01:14]}
Qd4 {[%clk 00:04:01]} {[%emt 00:00:18]} 34. Qh2 {[%clk 00:31:16]} {[%emt
00:00:44]} e3 {[%clk 00:03:29]} {[%emt 00:00:42]} 35. Rg1 {[%clk 00:26:08]}
{[%emt 00:05:18]} Qe4+ {[%clk 00:02:38]} {[%emt 00:01:01]} 36. Qg2 {[%clk
00:25:25]} {[%emt 00:00:53]} e2 {[%clk 00:02:44]} {[%emt 00:00:04]} 37. Qxe4
{[%clk 00:25:03]} {[%emt 00:00:31]} Rxe4 {[%clk 00:02:51]} {[%emt 00:00:04]} 38.
Re1 {[%clk 00:25:08]} {[%emt 00:00:05]} f4 {[%clk 00:02:39]} {[%emt 00:00:22]}
39. Rf3 {[%clk 00:22:12]} {[%emt 00:03:05]} Kf6 {[%clk 00:01:39]} {[%emt
00:01:10]} 40. Rf2 {[%clk 00:21:56]} {[%emt 00:00:25]} Rxc4 {[%clk 00:01:40]}
{[%emt 00:00:10]} 41. Rexe2 {[%clk 00:20:36]} {[%emt 00:01:30]} d5 {[%clk
00:01:24]} {[%emt 00:00:26]} 42. Rc2 {[%clk 00:20:20]} {[%emt 00:00:26]} Ke6
{[%clk 00:00:40]} {[%emt 00:00:55]} 43. Rxc4 {[%clk 00:18:54]} {[%emt
00:01:36]} dxc4 {[%clk 00:00:48]} {[%emt 00:00:02]} 44. Rxf4 {[%clk 00:18:59]}
{[%emt 00:00:05]} Kd5 {[%clk 00:00:53]} {[%emt 00:00:04]} 45. Rf7 {[%clk
00:18:58]} {[%emt 00:00:12]} Kc5 {[%clk 00:00:59]} {[%emt 00:00:04]} 46. Rxc7+
{[%clk 00:18:44]} {[%emt 00:00:23]} Kxb5 {[%clk 00:01:07]} {[%emt 00:00:02]} 47.
Rxa7 {[%clk 00:17:22]} {[%emt 00:01:32]} c3 {[%clk 00:01:16]} {[%emt 00:00:02]}
48. Ra8 {[%clk 00:15:26]} {[%emt 00:02:06]} c2 {[%clk 00:01:17]} {[%emt
00:00:09]} 49. Rc8 {[%clk 00:15:33]} {[%emt 00:00:02]} Kxa6 {[%clk 00:01:25]}
{[%emt 00:00:02]} 50. Rxc2 {[%clk 00:15:38]} {[%emt 00:00:06]} b5 {[%clk
00:01:16]} {[%emt 00:00:19]} 51. Kg1 {[%clk 00:15:14]} {[%emt 00:00:34]} b4
{[%clk 00:00:53]} {[%emt 00:00:32]} 52. Kf1 {[%clk 00:15:00]} {[%emt 00:00:23]}
Kb5 {[%clk 00:00:56]} {[%emt 00:00:08]} 53. Ke1 {[%clk 00:14:56]} {[%emt
00:00:14]} Ka4 {[%clk 00:00:35]} {[%emt 00:00:32]} 54. Kd1 {[%clk 00:14:57]}
{[%emt 00:00:09]} b3 {[%clk 00:00:37]} {[%emt 00:00:08]} 55. Rg2 {[%clk
00:14:58]} {[%emt 00:00:08]} 1-0

[Event "HSG Open 2022 A"]
[Site "Hilversum, Netherlands"]
[Date "2022.06.18"]
[Round "3.5"]
[White "Jonsson, Gauti Pall"]
[Black "Pham, Khoi"]
[Result "0-1"]
[TimeControl "1:50 + 0.10"]
[WhiteElo "2036"]
[BlackElo "2244"]

1. d4 {[%clk 01:49:09]} {[%emt 00:01:10]} Nf6 {[%clk 01:50:15]} {[%emt
00:00:06]} 2. Bf4 {[%clk 01:48:47]} {[%emt 00:00:31]} d5 {[%clk 01:49:32]}
{[%emt 00:00:53]} 3. Nc3 {[%clk 01:47:58]} {[%emt 00:00:59]} e6 {[%clk
01:49:21]} {[%emt 00:00:22]} 4. Nb5 {[%clk 01:46:44]} {[%emt 00:01:24]} Na6
{[%clk 01:49:24]} {[%emt 00:00:07]} 5. e3 {[%clk 01:45:16]} {[%emt 00:01:37]}
Be7 {[%clk 01:49:12]} {[%emt 00:00:23]} 6. Bd3 {[%clk 01:40:34]} {[%emt
00:04:52]} O-O {[%clk 01:48:43]} {[%emt 00:00:39]} 7. g4 {[%clk 01:35:23]}
{[%emt 00:05:21]} c6 {[%clk 01:46:29]} {[%emt 00:02:24]} 8. Nc3 {[%clk
01:34:43]} {[%emt 00:00:49]} Nb4 {[%clk 01:44:58]} {[%emt 00:01:41]} 9. g5
{[%clk 01:29:14]} {[%emt 00:05:39]} Nxd3+ {[%clk 01:44:02]} {[%emt 00:01:07]}
10. cxd3 {[%clk 01:29:11]} {[%emt 00:00:13]} Nd7 {[%clk 01:43:05]} {[%emt
00:01:07]} 11. Nf3 {[%clk 01:26:08]} {[%emt 00:03:13]} c5 {[%clk 01:33:17]}
{[%emt 00:09:58]} 12. dxc5 {[%clk 01:23:02]} {[%emt 00:03:16]} Nxc5 {[%clk
01:33:22]} {[%emt 00:00:05]} 13. b4 {[%clk 01:21:47]} {[%emt 00:01:25]} Nd7
{[%clk 01:29:40]} {[%emt 00:03:51]} 14. a3 {[%clk 01:17:49]} {[%emt 00:04:09]}
d4 {[%clk 01:25:20]} {[%emt 00:04:30]} 15. Ne4 {[%clk 01:10:14]} {[%emt
00:07:45]} dxe3 {[%clk 01:19:56]} {[%emt 00:05:35]} 16. fxe3 {[%clk 01:07:22]}
{[%emt 00:03:00]} a5 {[%clk 01:06:19]} {[%emt 00:13:49]} 17. Qc1 {[%clk
01:00:45]} {[%emt 00:06:46]} e5 {[%clk 01:04:28]} {[%emt 00:02:01]} 18. Bg3
{[%clk 00:55:06]} {[%emt 00:05:48]} axb4 {[%clk 01:04:04]} {[%emt 00:00:35]} 19.
axb4 {[%clk 00:55:01]} {[%emt 00:00:15]} Bxb4+ {[%clk 01:03:27]} {[%emt
00:00:47]} 20. Kf2 {[%clk 00:53:50]} {[%emt 00:01:20]} Rxa1 {[%clk 00:54:27]}
{[%emt 00:09:12]} 21. Qxa1 {[%clk 00:53:54]} {[%emt 00:00:05]} f5 {[%clk
00:53:50]} {[%emt 00:00:47]} 22. gxf6 {[%clk 00:47:51]} {[%emt 00:06:14]} Nxf6
{[%clk 00:53:48]} {[%emt 00:00:11]} 23. Qa2+ {[%clk 00:45:28]} {[%emt
00:02:32]} Kh8 {[%clk 00:53:49]} {[%emt 00:00:10]} 24. Kg2 {[%clk 00:43:50]}
{[%emt 00:01:48]} Qxd3 {[%clk 00:50:50]} {[%emt 00:03:09]} 25. Neg5 {[%clk
00:42:01]} {[%emt 00:01:59]} Nd5 {[%clk 00:49:17]} {[%emt 00:01:43]} 26. Bxe5
{[%clk 00:40:35]} {[%emt 00:01:36]} Nxe3+ {[%clk 00:44:55]} {[%emt 00:04:32]}
27. Kg3 {[%clk 00:39:55]} {[%emt 00:00:49]} Qc4 {[%clk 00:41:26]} {[%emt
00:03:40]} 28. Qxc4 {[%clk 00:38:22]} {[%emt 00:01:43]} Nxc4 {[%clk 00:41:31]}
{[%emt 00:00:06]} 29. Bd4 {[%clk 00:34:11]} {[%emt 00:04:20]} h6 {[%clk
00:35:36]} {[%emt 00:06:04]} 30. Ne4 {[%clk 00:33:42]} {[%emt 00:00:40]} Bf5
{[%clk 00:35:19]} {[%emt 00:00:27]} 31. Nc3 {[%clk 00:31:28]} {[%emt 00:02:24]}
Bd6+ {[%clk 00:34:40]} {[%emt 00:00:49]} 32. Kg2 {[%clk 00:31:02]} {[%emt
00:00:37]} b5 {[%clk 00:32:42]} {[%emt 00:02:08]} 33. Nh4 {[%clk 00:29:22]}
{[%emt 00:01:48]} b4 {[%clk 00:25:09]} {[%emt 00:07:44]} 34. Nxf5 {[%clk
00:28:41]} {[%emt 00:00:52]} Rxf5 {[%clk 00:25:11]} {[%emt 00:00:07]} 35. Ne4
{[%clk 00:28:32]} {[%emt 00:00:18]} Rd5 {[%clk 00:24:42]} {[%emt 00:00:40]} 36.
Bf2 {[%clk 00:26:50]} {[%emt 00:01:52]} b3 {[%clk 00:22:21]} {[%emt 00:02:32]}
37. Nc3 {[%clk 00:26:14]} {[%emt 00:00:46]} Rd3 {[%clk 00:21:46]} {[%emt
00:00:44]} 38. Nb1 {[%clk 00:25:28]} {[%emt 00:00:56]} b2 {[%clk 00:21:30]}
{[%emt 00:00:26]} 39. Re1 {[%clk 00:24:40]} {[%emt 00:00:58]} Na3 {[%clk
00:19:47]} {[%emt 00:01:53]} 40. Kf1 {[%clk 00:23:24]} {[%emt 00:01:27]} Bb4
{[%clk 00:17:36]} {[%emt 00:02:20]} 41. Nxa3 {[%clk 00:17:12]} {[%emt
00:06:23]} Rxa3 {[%clk 00:17:21]} {[%emt 00:00:25]} 0-1

[Event "HSG Open 2022 A"]
[Site "Hilversum, Netherlands"]
[Date "2022.06.18"]
[Round "3.6"]
[White "Van Foreest, Machteld"]
[Black "Boekelman, Jan"]
[Result "1-0"]
[TimeControl "1:50 + 0.10"]
[WhiteElo "2295"]
[BlackElo "2116"]

1. e4 {[%clk 01:50:18]} {[%emt 00:00:03]} c5 {[%clk 01:45:59]} {[%emt
00:04:22]} 2. Nf3 {[%clk 01:50:23]} {[%emt 00:00:03]} a6 {[%clk 01:46:00]}
{[%emt 00:00:09]} 3. c4 {[%clk 01:50:21]} {[%emt 00:00:13]} Nc6 {[%clk
01:45:56]} {[%emt 00:00:12]} 4. d4 {[%clk 01:45:54]} {[%emt 00:04:38]} cxd4
{[%clk 01:43:23]} {[%emt 00:02:44]} 5. Nxd4 {[%clk 01:45:52]} {[%emt 00:00:11]}
e5 {[%clk 01:43:20]} {[%emt 00:00:12]} 6. Nf5 {[%clk 01:43:26]} {[%emt
00:02:36]} d5 {[%clk 01:43:04]} {[%emt 00:00:26]} 7. cxd5 {[%clk 01:35:49]}
{[%emt 00:07:47]} Bxf5 {[%clk 01:42:53]} {[%emt 00:00:20]} 8. exf5 {[%clk
01:35:13]} {[%emt 00:00:48]} Nd4 {[%clk 01:42:56]} {[%emt 00:00:06]} 9. Nc3
{[%clk 01:31:53]} {[%emt 00:03:31]} Nf6 {[%clk 01:42:47]} {[%emt 00:00:17]} 10.
Bg5 {[%clk 01:28:45]} {[%emt 00:03:19]} Be7 {[%clk 01:39:55]} {[%emt 00:03:02]}
11. Bxf6 {[%clk 01:23:44]} {[%emt 00:05:11]} Bxf6 {[%clk 01:39:48]} {[%emt
00:00:18]} 12. Bd3 {[%clk 01:22:23]} {[%emt 00:01:31]} Qd7 {[%clk 01:30:47]}
{[%emt 00:09:10]} 13. O-O {[%clk 01:17:51]} {[%emt 00:04:42]} Nxf5 {[%clk
01:17:21]} {[%emt 00:13:36]} 14. Na4 {[%clk 01:13:43]} {[%emt 00:04:20]} Rd8
{[%clk 01:13:06]} {[%emt 00:04:24]} 15. Nb6 {[%clk 01:09:21]} {[%emt 00:04:33]}
Qd6 {[%clk 01:05:49]} {[%emt 00:07:26]} 16. Qa4+ {[%clk 01:05:49]} {[%emt
00:03:42]} Kf8 {[%clk 00:57:18]} {[%emt 00:08:41]} 17. Nc4 {[%clk 01:03:23]}
{[%emt 00:02:37]} Qc7 {[%clk 00:48:21]} {[%emt 00:09:07]} 18. Bxf5 {[%clk
01:02:53]} {[%emt 00:00:40]} 1-0

[Event "HSG Open 2022 A"]
[Site "Hilversum, Netherlands"]
[Date "2022.06.18"]
[Round "3.7"]
[White "In t Veld, Daan"]
[Black "Pijpers, Arthur"]
[Result "1/2-1/2"]
[TimeControl "1:50 + 0.10"]
[WhiteElo "2125"]
[BlackElo "2455"]

1. e4 {[%clk 01:50:17]} {[%emt 00:00:03]} c5 {[%clk 01:50:14]} {[%emt
00:00:07]} 2. c3 {[%clk 01:50:15]} {[%emt 00:00:12]} Nf6 {[%clk 01:50:15]}
{[%emt 00:00:11]} 3. e5 {[%clk 01:50:19]} {[%emt 00:00:04]} Nd5 {[%clk
01:50:21]} {[%emt 00:00:04]} 4. d4 {[%clk 01:50:24]} {[%emt 00:00:05]} cxd4
{[%clk 01:50:24]} {[%emt 00:00:07]} 5. Nf3 {[%clk 01:50:28]} {[%emt 00:00:05]}
Nc6 {[%clk 01:50:15]} {[%emt 00:00:20]} 6. Bc4 {[%clk 01:50:31]} {[%emt
00:00:08]} Nb6 {[%clk 01:50:20]} {[%emt 00:00:03]} 7. Bb3 {[%clk 01:50:36]}
{[%emt 00:00:06]} d5 {[%clk 01:50:24]} {[%emt 00:00:06]} 8. exd6 {[%clk
01:50:27]} {[%emt 00:00:19]} Qxd6 {[%clk 01:50:27]} {[%emt 00:00:06]} 9. O-O
{[%clk 01:49:53]} {[%emt 00:00:44]} Be6 {[%clk 01:50:31]} {[%emt 00:00:07]} 10.
Na3 {[%clk 01:49:37]} {[%emt 00:00:26]} dxc3 {[%clk 01:48:08]} {[%emt
00:02:33]} 11. Nb5 {[%clk 01:42:24]} {[%emt 00:07:22]} Qxd1 {[%clk 01:46:39]}
{[%emt 00:01:38]} 12. Rxd1 {[%clk 01:42:27]} {[%emt 00:00:07]} Rc8 {[%clk
01:46:05]} {[%emt 00:00:44]} 13. Bxe6 {[%clk 01:38:44]} {[%emt 00:03:53]} c2
{[%clk 01:41:57]} {[%emt 00:04:18]} 14. Rd2 {[%clk 01:35:48]} {[%emt 00:03:07]}
fxe6 {[%clk 01:41:43]} {[%emt 00:00:24]} 15. Rxc2 {[%clk 01:34:30]} {[%emt
00:01:28]} a6 {[%clk 01:18:16]} {[%emt 00:23:37]} 16. Nbd4 {[%clk 01:29:18]}
{[%emt 00:05:22]} Nxd4 {[%clk 01:17:54]} {[%emt 00:00:32]} 17. Rxc8+ {[%clk
01:29:20]} {[%emt 00:00:08]} Nxc8 {[%clk 01:18:01]} {[%emt 00:00:04]} 18. Nxd4
{[%clk 01:29:24]} {[%emt 00:00:05]} e5 {[%clk 01:04:02]} {[%emt 00:14:10]} 19.
Ne6 {[%clk 01:28:47]} {[%emt 00:00:47]} Nd6 {[%clk 01:03:16]} {[%emt 00:00:55]}
20. Bd2 {[%clk 01:11:24]} {[%emt 00:17:33]} Kf7 {[%clk 01:02:33]} {[%emt
00:00:53]} 21. Nd8+ {[%clk 01:10:10]} {[%emt 00:01:25]} Ke8 {[%clk 01:02:37]}
{[%emt 00:00:05]} 22. Ne6 {[%clk 01:10:14]} {[%emt 00:00:05]} Kf7 {[%clk
00:48:35]} {[%emt 00:14:13]} 23. Nd8+ {[%clk 01:10:17]} {[%emt 00:00:07]} Ke8
{[%clk 00:48:41]} {[%emt 00:00:04]} 1/2-1/2